fUSD/lending_fUSD_20260421
["ID","MTS","AMOUNT","RATE_DAILY","PERIOD"]
[420943141,1776771032444,-500.0,9.513e-05,2]
[420943142,1776771032453,-500.0,9.513e-05,2]
[420943143,1776771032463,-397.80171317,9.513e-05,2]
[420943146,1776771032473,-500.0,9.513e-05,2]
[420943148,1776771032483,-500.0,9.513e-05,2]
[420943149,1776771032492,-500.0,9.513e-05,2]
[420943150,1776771032502,-500.0,9.513e-05,2]
[420943151,1776771032511,-500.0,9.513e-05,2]
[420943153,1776771032520,-237.76509663,9.513e-05,2]
[420943155,1776771032529,-500.0,9.513e-05,2]
[420943157,1776771032538,-195.91604875,9.513e-05,2]
[420943159,1776771032548,-206.05229512,9.513e-05,2]
[420943161,1776771032557,-500.0,9.513e-05,2]
[420943163,1776771032566,-210677.1932,9.514e-05,2]
[420943165,1776771032576,-300.0,9.515e-05,2]
[420943167,1776771032585,-13005.4863,9.515e-05,2]
[420943169,1776771032594,-178001.48279919,9.515e-05,2]
[420943172,1776771032606,-31169.60065044,9.515e-05,2]
[420943175,1776771032622,-52783.35798781,9.515e-05,2]
[420943179,1776771032636,-7648.06836698,9.515e-05,2]
[420943182,1776771032649,-2174.50212326,9.515e-05,2]
[420943183,1776771032661,-882.31924771,9.515e-05,2]
[420943184,1776771032672,-3331.55408255,9.515e-05,2]
[420943185,1776771032688,-8042.82491635,9.515e-05,2]
[420943186,1776771032699,-330.0,9.515e-05,2]
[420943187,1776771032710,-34779.99999948,9.515e-05,2]
[420943188,1776771032721,-1705.55759253,9.515e-05,2]
[420943189,1776771032740,-491.5847794,9.515e-05,2]
[420943190,1776771032758,-3331.0,9.515e-05,2]
[420943199,1776771038420,-372.73608226,9.514e-05,2]
[420943200,1776771039379,-127.26391774,9.514e-05,2]
[420943201,1776771039390,-500.0,9.514e-05,2]
[420943202,1776771039402,-419.52644981,9.514e-05,2]
[420943203,1776771039414,-243.29532687,9.514e-05,2]
[420943204,1776771039428,-256.70467313,9.514e-05,2]
[420943205,1776771039440,-500.0,9.514e-05,2]
[420943206,1776771039453,-10.83584801,9.514e-05,2]
[420943207,1776771039467,-489.16415199,9.514e-05,2]
[420943208,1776771039478,-558.45874099,9.514e-05,2]
[420943209,1776771039490,-500.0,9.514e-05,2]
[420943210,1776771039501,-500.0,9.514e-05,2]
[420943211,1776771039513,-570.98034227,9.514e-05,2]
[420943212,1776771039524,-500.0,9.514e-05,2]
[420943213,1776771039535,-602.97989324,9.514e-05,2]
[420943214,1776771039547,-500.0,9.514e-05,2]
[420943215,1776771039558,-11054.8127543,9.515e-05,2]
[420943216,1776771039569,-250.0,9.52e-05,2]
[420943217,1776771039580,-300.0,9.541e-05,2]
[420943218,1776771039592,-769.1714,9.542e-05,2]
[420943219,1776771039604,-1000.0,9.542e-05,2]
[420943220,1776771039615,-5000.0,9.542e-05,2]
[420943221,1776771039625,-2500.0,9.542e-05,2]
[420943222,1776771039636,-478.0,9.561e-05,2]
[420943223,1776771039647,-289.0,9.561e-05,2]
[420943224,1776771039658,-500.0,9.593e-05,2]
[420943225,1776771039671,-282.37,9.6e-05,2]
[420943226,1776771039682,-5865.472,9.614e-05,2]
[420943227,1776771039693,-447.114,9.614e-05,2]
[420943228,1776771039704,-285.31,9.614e-05,2]
[420943229,1776771039715,-999.99,9.615e-05,2]
[420943230,1776771039726,-9999.99,9.615e-05,2]
[420943231,1776771039737,-9999.99,9.615e-05,2]
[420943232,1776771039748,-21644.82443328,9.615e-05,2]
[420943233,1776771039762,-48993.48432967,9.615e-05,2]
[420943234,1776771039776,-1826.1386616,9.615e-05,2]
[420943235,1776771039794,-797.78121,9.615e-05,2]
[420943236,1776771039816,-23158.07136545,9.615e-05,2]
[420943237,1776771039827,-2176.50652205,9.615e-05,2]
[420943238,1776771039864,-3460.0,9.615e-05,2]
[420943239,1776771040370,-808.0336,9.615e-05,2]
[420943242,1776771042404,-322.86213316,9.615e-05,2]
[420943243,1776771042496,-18232.58774479,9.615e-05,2]
[420943244,1776771042506,-518.99,9.615e-05,2]
[420943245,1776771042515,-9999.99,9.615e-05,2]
[420943246,1776771042525,-150.99,9.615e-05,2]
[420943247,1776771042534,-4999.99,9.615e-05,2]
[420943248,1776771042544,-299.99,9.615e-05,2]
[420943249,1776771042553,-9999.99,9.615e-05,2]
[420943250,1776771042563,-150.0,9.616e-05,2]
[420943251,1776771042572,-150.0,9.623e-05,2]
[420943252,1776771042582,-500.44215231,9.623e-05,2]
[420943253,1776771042591,-500.0,9.623e-05,2]
[420943254,1776771042600,-151.0,9.642e-05,2]
[420943255,1776771042610,-278.054918,9.642e-05,2]
[420943256,1776771042619,-278.054918,9.642e-05,2]
[420943257,1776771042629,-278.054918,9.642e-05,2]
[420943258,1776771042638,-278.054918,9.642e-05,2]
[420943259,1776771042648,-1594.7178845,9.742e-05,2]
[420943260,1776771042657,-14016.6058513,9.742e-05,2]
[420943261,1776771042667,-156.0,9.743e-05,3]
[420943262,1776771042676,-154.0,9.743e-05,3]
[420943263,1776771042686,-152.0,9.786e-05,7]
[420943264,1776771042695,-230.2547,9.8e-05,2]
[420943265,1776771042705,-400.0,9.8e-05,3]
[420943266,1776771042714,-2308.56,9.847e-05,2]
[420943267,1776771042725,-155.362,9.851e-05,2]
[420943268,1776771042734,-285.31,9.888e-05,2]
[420943269,1776771042744,-800.0,9.9e-05,3]
[420943270,1776771042753,-209.0,9.989e-05,2]
[420943271,1776771042763,-231.09,0.0001,2]
[420943272,1776771042772,-243.39037854,0.0001,2]
[420943273,1776771042782,-429.38192765,0.0001,2]
[420943274,1776771042792,-396.16760972,0.0001,2]
[420943275,1776771042801,-448.71283724,0.0001,2]
[420943276,1776771042810,-200.0,0.0001,2]
[420943277,1776771042820,-151.0,0.0001,2]
[420943278,1776771042829,-500.0,0.0001,2]
[420943279,1776771042839,-151.0,0.0001,2]
[420943280,1776771042848,-224.33095253,0.0001,2]
[420943281,1776771042858,-1300.0,0.0001,3]
[420943282,1776771042867,-151.0,0.0001,2]
[420943283,1776771042877,-151.0,0.0001,2]
[420943284,1776771042886,-500.0,0.0001,2]
[420943285,1776771042895,-151.0,0.0001,2]
[420943286,1776771042905,-151.0,0.0001,2]
[420943287,1776771042915,-151.0,0.0001,2]
[420943288,1776771042924,-151.0,0.0001,2]
[420943289,1776771042934,-151.0,0.0001,2]
[420943290,1776771042943,-151.0,0.0001,2]
[420943291,1776771042953,-151.0,0.0001,2]
[420943292,1776771042963,-151.0,0.0001,2]
[420943293,1776771042972,-151.0,0.0001,2]
[420943294,1776771042982,-151.0,0.0001,2]
[420943295,1776771042991,-151.0,0.0001,2]
[420943296,1776771043000,-151.0,0.0001,2]
[420943297,1776771043010,-151.0,0.0001,2]
[420943298,1776771043019,-151.0,0.0001,2]
[420943299,1776771043029,-151.0,0.0001,2]
[420943300,1776771043038,-286.71323757,0.0001,2]
[420943301,1776771043047,-151.0,0.0001,2]
[420943302,1776771043057,-398.33253042,0.0001,2]
[420943303,1776771043066,-1852.42,0.00010054,2]
[420943304,1776771043075,-501.63006459,0.00010141,2]
[420943305,1776771043084,-285.31,0.00010162,2]
[420943306,1776771043094,-187.54,0.00010339,2]
[420943307,1776771043104,-154.0,0.00010424,3]
[420943308,1776771043114,-285.31,0.00010436,2]
[420943309,1776771043123,-255.0,0.00010463,2]
[420943310,1776771043133,-160.83,0.00010476,2]
[420943311,1776771043142,-5530.0,0.000105,5]
[420943312,1776771043151,-8800.0,0.00010666,2]
[420943313,1776771043161,-63347.70637099,0.000107,2]
[420943315,1776771043176,-55040.67020075,0.000107,2]
[420943317,1776771043185,-285.35,0.0001071,2]
[420943319,1776771043195,-21073.97979926,0.000109,2]
[420943326,1776771043369,-3843.89820875,0.000109,2]
[420943327,1776771043579,-327.365286,0.000109,2]
[420943328,1776771043636,-3857.26118798,0.000109,2]
[420943329,1776771043649,-316.220239,0.000109,2]
[420943330,1776771043660,-344.0,0.000109,2]
[420943331,1776771046214,-8711.38060063,0.000109,2]
[420943332,1776771046226,-8684.09821669,0.000109,2]
[420943333,1776771046257,-14035.45352238,0.000109,2]
[420943334,1776771046639,-2191.9471298,0.000109,2]
[420943523,1776771855855,185.31,7.163e-05,2]
[420943576,1776772232942,-150.0,8.458e-05,2]
[420943577,1776772232952,-150.0,8.458e-05,2]
[420943578,1776772232963,-150.0,8.458e-05,2]
[420943579,1776772232973,-150.0,8.458e-05,2]
[420943580,1776772232984,-150.0,8.458e-05,2]
[420943581,1776772233203,-150.0,8.692e-05,2]
[420943582,1776772233214,-150.0,8.771e-05,2]
[420943583,1776772233224,-300.0,8.8e-05,3]
[420943584,1776772233235,-160.31,8.9e-05,3]
[420943585,1776772233260,-439.69,8.9e-05,3]
[420943586,1776772233270,-150.0,8.927e-05,2]
[420943587,1776772233281,-185.31,8.954e-05,2]
[420943588,1776772233291,-5.47237278,9e-05,3]
[420943589,1776772233304,-894.52762722,9e-05,3]
[420943590,1776772233318,-44.02237278,9.084e-05,2]
[420943591,1776772233331,-117.20762722,9.084e-05,2]
[420943592,1776772233341,-150.0,9.084e-05,2]
[420943593,1776772233351,-1200.0,9.088e-05,2]
[420943594,1776772233362,-300.0,9.089e-05,2]
[420943595,1776772233372,-2949.15885064,9.09e-05,2]
[420943596,1776772233385,-1546.86972656,9.09e-05,2]
[420943597,1776772233398,-5351.57,9.09e-05,2]
[420943598,1776772233410,-470.5614228,9.09e-05,2]
[420943599,1776772233421,-161.35,9.1e-05,2]
[420943600,1776772233431,-166.66,9.121e-05,2]
[420943601,1776772233442,-150.0,9.162e-05,2]
[420943602,1776772233453,-5865.472,9.225e-05,2]
[420943603,1776772233463,-447.114,9.225e-05,2]
[420943604,1776772233474,-250.0,9.303e-05,2]
[420943605,1776772233485,-1552.04943343,9.303e-05,2]
[420943606,1776772233495,-64752.81534072,9.313e-05,2]
[420943607,1776772233511,-7651.73791415,9.313e-05,2]
[420943608,1776772233524,-4061.81751019,9.313e-05,2]
[420943610,1776772239004,-300.4400041,9.313e-05,2]
[420943611,1776772239015,-75887.62771607,9.313e-05,2]
[420943612,1776772239026,-836.04291477,9.313e-05,2]
[420943613,1776772239035,-33393.9006,9.313e-05,2]
[420943614,1776772239045,-2500.0,9.314e-05,2]
[420943615,1776772239054,-522.06145725,9.393e-05,2]
[420943616,1776772239063,-500.0,9.393e-05,2]
[420943617,1776772239072,-150.0,9.397e-05,2]
[420943618,1776772239081,-150.0,9.397e-05,2]
[420943619,1776772239090,-150.0,9.397e-05,2]
[420943620,1776772239100,-150.0,9.397e-05,2]
[420943621,1776772239109,-150.0,9.397e-05,2]
[420943622,1776772239118,-150.0,9.41e-05,2]
[420943623,1776772239128,-299.99,9.411e-05,2]
[420943624,1776772239138,-150.99,9.411e-05,2]
[420943625,1776772239148,-7185.12,9.411e-05,2]
[420943626,1776772239157,-2705.37935765,9.411e-05,2]
[420943627,1776772239168,-1826.1386616,9.411e-05,2]
[420943628,1776772239186,-301.27979387,9.411e-05,2]
[420943629,1776772239212,-400.0,9.411e-05,2]
[420943630,1776772239258,-318.33,9.411e-05,2]
[420943631,1776772239270,-642.72218688,9.411e-05,2]
[420943632,1776772239279,-56.59450814,9.412e-05,2]
[420943633,1776772239421,-354.32387694,9.312e-05,2]
[420943634,1776772239432,-145.67612306,9.312e-05,2]
[420943635,1776772239442,-500.0,9.312e-05,2]
[420943636,1776772239452,-500.0,9.312e-05,2]
[420943637,1776772239461,-357.50034771,9.312e-05,2]
[420943645,1776772240740,-142.49965229,9.312e-05,2]
[420943646,1776772240750,-500.0,9.312e-05,2]
[420943647,1776772240758,-500.0,9.312e-05,2]
[420943648,1776772240767,-500.0,9.312e-05,2]
[420943649,1776772240776,-447.90932429,9.312e-05,2]
[420943743,1776772246428,-52.09067571,9.312e-05,2]
[420943744,1776772246437,-247.02900828,9.312e-05,2]
[420943745,1776772246791,-252.97099172,9.312e-05,2]
[420943746,1776772246801,-129.84364828,9.312e-05,2]
[420943747,1776772246845,-370.15635172,9.312e-05,2]
[420943748,1776772246855,-500.0,9.312e-05,2]
[420943749,1776772246864,-500.0,9.312e-05,2]
[420943750,1776772246874,-500.0,9.312e-05,2]
[420943751,1776772246884,-500.0,9.312e-05,2]
[420943752,1776772246894,-422.31414828,9.312e-05,2]
[420943753,1776772246913,-77.68585172,9.312e-05,2]
[420943754,1776772246923,-500.0,9.312e-05,2]
[420943755,1776772246932,-500.0,9.312e-05,2]
[420943756,1776772246942,-500.0,9.312e-05,2]
[420943757,1776772246952,-500.0,9.312e-05,2]
[420943759,1776772246962,-500.0,9.312e-05,2]
[420943761,1776772246971,-500.0,9.312e-05,2]
[420943763,1776772246981,-234.38012524,9.312e-05,2]
[420943765,1776772246991,-433.97061132,9.312e-05,2]
[420943815,1776772370723,159.44,0.00015,90]
[420943841,1776772837958,1203.24505145,0.000165,30]
[420943846,1776773431512,-150.0,8.359e-05,2]
[420943847,1776773431521,-150.0,8.359e-05,2]
[420943848,1776773431531,-150.0,8.359e-05,2]
[420943849,1776773431540,-84.06656813,8.359e-05,2]
[420943877,1776773432991,-65.93343187,8.359e-05,2]
[420943878,1776773433003,-150.0,8.359e-05,2]
[420943879,1776773433014,-52.06656813,8.359e-05,2]
[420943880,1776773433031,-97.93343187,8.359e-05,2]
[420943881,1776773433044,-150.0,8.359e-05,2]
[420943882,1776773433055,-1200.0,8.551e-05,2]
[420943883,1776773433068,-300.0,8.552e-05,2]
[420943884,1776773433095,-9493.46,8.553e-05,2]
[420943885,1776773433106,-227.15351426,8.7e-05,2]
[420943886,1776773433120,-200.0,8.8e-05,3]
[420943887,1776773433131,-150.0,8.823e-05,2]
[420943888,1776773433143,-400.0,8.9e-05,3]
[420943889,1776773433155,-500.0,8.913e-05,2]
[420943890,1776773433166,-500.0,8.913e-05,2]
[420943891,1776773433178,-500.0,8.913e-05,2]
[420943892,1776773433190,-500.0,8.913e-05,2]
[420943893,1776773433201,-500.0,8.913e-05,2]
[420943894,1776773433212,-500.0,8.913e-05,2]
[420943895,1776773433225,-15296.99273448,8.939e-05,2]
[420943896,1776773433265,-266.38014877,8.939e-05,2]
[420943897,1776773433279,-61160.29771675,8.939e-05,2]
[420943898,1776773433291,-150.0,8.939e-05,2]
[420943899,1776773433303,-58693.0877,8.94e-05,2]
[420943900,1776773433314,-10718.58,8.952e-05,2]
[420943901,1776773433325,-478.0,8.985e-05,2]
[420943902,1776773433337,-289.0,8.996e-05,2]
[420943903,1776773433348,-179.48,9e-05,2]
[420943904,1776773433360,-6083.454,9e-05,2]
[420943905,1776773433372,-463.72,9e-05,2]
[420943906,1776773433385,-600.0,9e-05,3]
[420943907,1776773433397,-272.36368211,9.01e-05,2]
[420943908,1776773433408,-10433.59052773,9.039e-05,2]
[420943909,1776773433420,-500.0,9.039e-05,2]
[420943910,1776773433431,-181.84680563,9.039e-05,2]
[420943911,1776773433443,-49969.67075065,9.04e-05,2]
[420943912,1776773433454,-2500.0,9.16e-05,2]
[420943913,1776773433467,-150.99,9.193e-05,2]
[420943914,1776773433479,-151.0,9.256e-05,2]
[420943915,1776773433490,-9999.99,9.259e-05,2]
[420943916,1776773433502,-9999.99,9.259e-05,2]
[420943917,1776773433513,-500.0,9.259e-05,2]
[420943918,1776773433524,-500.0,9.259e-05,2]
[420943919,1776773433536,-500.0,9.259e-05,2]
[420943920,1776773433548,-500.0,9.259e-05,2]
[420943921,1776773433564,-500.0,9.259e-05,2]
[420943922,1776773433576,-500.0,9.259e-05,2]
[420943923,1776773433586,-500.0,9.259e-05,2]
[420943924,1776773433597,-500.0,9.259e-05,2]
[420943925,1776773433608,-500.0,9.259e-05,2]
[420943926,1776773433619,-500.0,9.259e-05,2]
[420943927,1776773433630,-500.0,9.259e-05,2]
[420943928,1776773433642,-500.0,9.259e-05,2]
[420943929,1776773433653,-500.0,9.259e-05,2]
[420943930,1776773433666,-500.0,9.259e-05,2]
[420943931,1776773433677,-500.0,9.259e-05,2]
[420943932,1776773433688,-500.0,9.259e-05,2]
[420943933,1776773433700,-500.0,9.259e-05,2]
[420943934,1776773433711,-500.0,9.259e-05,2]
[420943935,1776773433723,-500.0,9.259e-05,2]
[420943936,1776773433734,-500.0,9.259e-05,2]
[420943937,1776773433746,-500.0,9.259e-05,2]
[420943938,1776773433757,-500.0,9.259e-05,2]
[420943939,1776773433769,-500.0,9.259e-05,2]
[420943940,1776773433781,-500.0,9.259e-05,2]
[420943941,1776773433792,-500.0,9.259e-05,2]
[420943942,1776773433803,-500.0,9.259e-05,2]
[420943943,1776773433816,-500.0,9.259e-05,2]
[420943944,1776773433829,-500.0,9.259e-05,2]
[420943945,1776773433841,-500.0,9.259e-05,2]
[420943946,1776773433853,-500.0,9.259e-05,2]
[420943947,1776773433865,-500.0,9.259e-05,2]
[420943948,1776773433877,-500.0,9.259e-05,2]
[420943949,1776773433888,-500.0,9.259e-05,2]
[420943950,1776773433900,-283.81964826,9.259e-05,2]
[420943951,1776773433912,-518.33325793,9.259e-05,2]
[420943952,1776773433923,-518.33325793,9.259e-05,2]
[420943953,1776773433935,-518.33325793,9.259e-05,2]
[420943954,1776773433947,-518.33325793,9.259e-05,2]
[420943955,1776773433958,-518.33325793,9.259e-05,2]
[420943956,1776773433970,-518.33325793,9.259e-05,2]
[420943957,1776773433981,-518.33325793,9.259e-05,2]
[420943958,1776773433993,-518.33325793,9.259e-05,2]
[420943959,1776773434005,-518.33325793,9.259e-05,2]
[420943960,1776773434018,-518.33325793,9.259e-05,2]
[420943961,1776773434029,-518.33325793,9.259e-05,2]
[420943962,1776773434041,-518.33325793,9.259e-05,2]
[420943963,1776773434052,-518.33325793,9.259e-05,2]
[420943964,1776773434064,-518.33325793,9.259e-05,2]
[420943965,1776773434075,-518.33325793,9.259e-05,2]
[420943966,1776773434087,-518.33325793,9.259e-05,2]
[420943967,1776773434098,-518.33325793,9.259e-05,2]
[420943968,1776773434109,-518.33325793,9.259e-05,2]
[420943969,1776773434121,-518.33325793,9.259e-05,2]
[420943970,1776773434133,-518.33325793,9.259e-05,2]
[420943971,1776773434144,-518.33325793,9.259e-05,2]
[420943972,1776773434155,-518.33325793,9.259e-05,2]
[420943973,1776773434167,-518.33325793,9.259e-05,2]
[420943974,1776773434178,-518.33325793,9.259e-05,2]
[420943975,1776773434191,-518.33325793,9.259e-05,2]
[420943976,1776773434202,-518.33325793,9.259e-05,2]
[420943977,1776773434214,-518.33325793,9.259e-05,2]
[420943978,1776773434226,-518.33325793,9.259e-05,2]
[420943979,1776773434237,-518.33325793,9.259e-05,2]
[420943980,1776773434249,-518.33325793,9.259e-05,2]
[420943981,1776773434261,-518.33325793,9.259e-05,2]
[420943982,1776773434272,-518.33325793,9.259e-05,2]
[420943983,1776773434284,-518.33325793,9.259e-05,2]
[420943984,1776773434295,-518.33325793,9.259e-05,2]
[420943985,1776773434306,-518.33325793,9.259e-05,2]
[420943986,1776773434318,-518.33325793,9.259e-05,2]
[420943987,1776773434329,-518.33325793,9.259e-05,2]
[420943988,1776773434340,-518.33325793,9.259e-05,2]
[420943989,1776773434352,-518.33325793,9.259e-05,2]
[420943990,1776773434363,-518.33325793,9.259e-05,2]
[420943991,1776773434375,-518.33325793,9.259e-05,2]
[420943992,1776773434387,-518.33325793,9.259e-05,2]
[420943993,1776773434398,-500.0,9.259e-05,2]
[420943994,1776773434409,-500.0,9.259e-05,2]
[420943995,1776773434420,-500.0,9.259e-05,2]
[420943996,1776773434431,-500.0,9.259e-05,2]
[420943997,1776773434442,-500.0,9.259e-05,2]
[420943998,1776773434453,-500.0,9.259e-05,2]
[420943999,1776773434464,-500.0,9.259e-05,2]
[420944000,1776773434476,-482.33217195,9.259e-05,2]
[420944001,1776773434487,-500.0,9.259e-05,2]
[420944002,1776773434499,-500.0,9.259e-05,2]
[420944003,1776773434510,-500.0,9.259e-05,2]
[420944004,1776773434521,-500.0,9.259e-05,2]
[420944005,1776773434532,-500.0,9.259e-05,2]
[420944006,1776773434543,-500.0,9.259e-05,2]
[420944007,1776773434555,-500.0,9.259e-05,2]
[420944008,1776773434566,-500.0,9.259e-05,2]
[420944009,1776773434578,-5310.76,9.26e-05,2]
[420944010,1776773434589,-102271.15,9.26e-05,2]
[420944011,1776773434600,-299.99,9.26e-05,2]
[420944012,1776773434611,-999.99,9.26e-05,2]
[420944013,1776773434622,-2602.71,9.26e-05,2]
[420944014,1776773434632,-4531.52,9.26e-05,2]
[420944015,1776773434643,-542.86,9.26e-05,2]
[420944016,1776773434654,-7185.12,9.26e-05,2]
[420944017,1776773434665,-150.0,9.288e-05,2]
[420944018,1776773434675,-150.0,9.288e-05,2]
[420944019,1776773434687,-500.0,9.292e-05,2]
[420944020,1776773434697,-500.0,9.292e-05,2]
[420944021,1776773434708,-196.19052554,9.292e-05,2]
[420944022,1776773434719,-477.99588784,9.292e-05,2]
[420944023,1776773434730,-500.0,9.292e-05,2]
[420944024,1776773434741,-500.0,9.292e-05,2]
[420944025,1776773434753,-500.0,9.292e-05,2]
[420944026,1776773434764,-500.0,9.292e-05,2]
[420944027,1776773434776,-386.15936401,9.292e-05,2]
[420944028,1776773434787,-500.0,9.292e-05,2]
[420944029,1776773434799,-500.0,9.292e-05,2]
[420944030,1776773434810,-500.0,9.292e-05,2]
[420944031,1776773434821,-500.0,9.292e-05,2]
[420944032,1776773434832,-500.0,9.292e-05,2]
[420944033,1776773434843,-354.74542825,9.292e-05,2]
[420944034,1776773434856,-1063.25963628,9.292e-05,3]
[420944035,1776773434867,-196.50990224,9.292e-05,3]
[420944036,1776773434878,-150.0,9.292e-05,2]
[420944037,1776773434889,-151.0,9.293e-05,2]
[420944038,1776773434899,-151.0,9.293e-05,2]
[420944039,1776773434910,-151.0,9.293e-05,2]
[420944040,1776773434921,-151.0,9.293e-05,2]
[420944041,1776773434932,-237.543935,9.293e-05,2]
[420944042,1776773434943,-237.543935,9.293e-05,2]
[420944043,1776773434953,-237.543935,9.293e-05,2]
[420944044,1776773434964,-237.543935,9.293e-05,2]
[420944045,1776773434975,-438.84,9.3e-05,2]
[420944046,1776773434987,-904.12832983,9.3e-05,2]
[420944047,1776773434998,-151.0,9.313e-05,2]
[420944048,1776773435009,-151.0,9.313e-05,2]
[420944049,1776773435019,-152.869871,9.313e-05,2]
[420944050,1776773435030,-3643.9515569,9.337e-05,2]
[420944051,1776773435041,-14561.6362434,9.337e-05,2]
[420944052,1776773435052,-1185.0762762,9.337e-05,2]
[420944053,1776773435063,-5292.0193256,9.337e-05,2]
[420944054,1776773435074,-7863.0173553,9.337e-05,2]
[420944055,1776773435085,-172.473845,9.364e-05,2]
[420944056,1776773435096,-1680.0,9.406e-05,2]
[420944057,1776773435107,-250.0,9.407e-05,2]
[420944058,1776773435118,-151.0,9.41e-05,2]
[420944059,1776773435129,-166.66,9.422e-05,2]
[420944060,1776773435140,-500.0,9.461e-05,2]
[420944061,1776773435151,-500.0,9.461e-05,2]
[420944062,1776773435164,-150.0,9.5e-05,2]
[420944063,1776773435174,-500.0,9.533e-05,2]
[420944064,1776773435186,-283.66570583,9.615e-05,2]
[420944065,1776773435196,-166.66,9.723e-05,2]
[420944066,1776773435206,-502.74187909,9.807e-05,2]
[420944067,1776773435217,-255.0,9.833e-05,2]
[420944068,1776773435228,-9613.07,9.888e-05,2]
[420944069,1776773435238,-190.51055578,0.0001,2]
[420944070,1776773435249,-257.20300185,0.0001,2]
[420944071,1776773435260,-271.62814669,0.0001,2]
[420944072,1776773435271,-279.69958072,0.0001,2]
[420944073,1776773435282,-151.6119364,0.0001,2]
[420944074,1776773435293,-154.28582406,0.0001,2]
[420944075,1776773435304,-9965.73889273,0.0001,2]
[420944076,1776773435315,-897.66,0.0001,2]
[420944077,1776773435325,-2182.38,0.0001,2]
[420944078,1776773435335,-770.0,0.0001,2]
[420944079,1776773435346,-166.66,0.00010024,2]
[420944080,1776773435357,-2000.0,0.00010112,2]
[420944081,1776773435367,-1500.0,0.00010169,2]
[420944082,1776773435378,-9311.63,0.00010189,2]
[420944083,1776773435389,-382.42,0.00010203,2]
[420944084,1776773437021,-1232.66260711,0.00010204,2]
[420944085,1776773437040,-732.1066392,0.0001025,2]
[420944086,1776773437050,-166.66,0.00010325,2]
[420944087,1776773437060,-2351.0,0.00010347,2]
[420944088,1776773437070,-1509.56,0.00010474,2]
[420944089,1776773437080,-3249.140227,0.0001052,2]
[420944090,1776773437091,-1180.8091196,0.0001052,2]
[420944091,1776773437100,-1754.4763217,0.00010522,2]
[420944092,1776773437110,-161.23,0.00010597,2]
[420944093,1776773437120,-166.66,0.00010626,2]
[420944094,1776773437129,-152.0,0.00010677,7]
[420944095,1776773437139,-152.0,0.00010677,7]
[420944096,1776773437150,-122853.10422623,0.0001069,3]
[420944097,1776773437160,-151.0,0.0001069,2]
[420944098,1776773437171,-151.0,0.0001069,2]
[420944099,1776773437181,-237.543935,0.0001069,2]
[420944100,1776773437192,-237.543935,0.0001069,2]
[420944101,1776773437202,-237.543935,0.0001069,2]
[420944102,1776773437213,-237.543935,0.0001069,2]
[420944103,1776773437223,-75476.60390991,0.000107,2]
[420944104,1776773437234,-185.31,0.00010745,2]
[420944105,1776773437243,-724.9811792,0.00010784,2]
[420944106,1776773437253,-263.4741279,0.00010784,2]
[420944107,1776773437264,-391.4765826,0.00010787,2]
[420944108,1776773437273,-433.0,0.00010816,2]
[420944109,1776773437283,-152.0,0.0001084,5]
[420944110,1776773437294,-208.86260346,0.0001084,5]
[420944117,1776773438543,-55.13739654,0.0001084,5]
[420944118,1776773438553,-889.08385,0.0001084,2]
[420944119,1776773438563,-160.0,0.00010877,2]
[420944120,1776773438572,-354.225586,0.00010877,2]
[420944121,1776773438582,-548.451173,0.00010877,2]
[420944122,1776773438591,-160.0,0.00010877,2]
[420944123,1776773438602,-679.940568,0.00010877,2]
[420944124,1776773438611,-1199.881136,0.00010877,2]
[420944125,1776773438621,-452.94,0.00010884,2]
[420944126,1776773438631,-889.08384,0.0001089,2]
[420944127,1776773438640,-70498.88416653,0.000109,2]
[420944128,1776773438651,-48993.48432967,0.000109,2]
[420944129,1776773438664,-1826.1386616,0.000109,2]
[420944130,1776773438675,-1620.0,0.000109,2]
[420944204,1776773440076,-80259.64856989,0.000109,2]
[420944205,1776773440088,-36200.33004994,0.000109,2]
[420944206,1776773440099,-630099.19802038,0.000109,2]
[420944207,1776773440111,-1425.82817633,0.000109,2]
[420944208,1776773440131,-211605.95190794,0.000109,2]
[420944209,1776773440242,-966.90083214,0.000109,2]